Cogmind - Beta 16 @@@ ROGUE MODE // 2025.11.08 @ 19:17:19 Player: Red Box Result: Destroyed by Y-54 Guardian with Gatling Laser Performance ------------- Evolutions (0) 0 Regions Visited (4) 800 Robots Destroyed (44) 220 Value Destroyed (886) 886 Prototype IDs (4) 80 Alien Tech Used (0) 0 Bonus (-6) -6 TOTAL SCORE: 1980 Bonus ------- Friendly Fire -6 Cogmind --------- Core Integrity 0/250 Matter 270/300 Energy 290/290 System Corruption 0% Temperature Cool (36) Movement Treading (320) Ox2 Location -7/Recycling Parts ------- > --- POWER (1) -------- Improved Deuterium Engine > --- PROPULSION (2) --- Light Treads Compact Wheel > --- UTILITY (2) ------ High-capacity Storage Unit Hacking Suite > --- WEAPON (2) ------- Subdweller Machine Gun Improved Assault Rifle > --- INVENTORY (20) --- Advanced Treads Compact Wheel Subdweller Monowheel Coolant Injector Large Storage Unit High-capacity Matter Pod (200) Makeshift Light Armor Plating Makeshift Light Armor Plating Scrap Shield Hardlight Generator Force Field Riot Gun Pulse Rifle Subdweller Beam Cannon Improved Assault Rifle Gauss Rifle Hypervelocity Gauss Rifle Subdweller Shrapnel Launcher Great Axe Peak State ------------ > --- POWER ------------ Improved Deuterium Engine > --- PROPULSION ------- Light Treads Compact Wheel > --- UTILITY ---------- High-capacity Storage Unit Hacking Suite > --- WEAPON ----------- Subdweller Machine Gun Improved Assault Rifle > --- INVENTORY -------- Advanced Treads Compact Wheel Subdweller Monowheel Coolant Injector Large Storage Unit High-capacity Matter Pod Makeshift Light Armor Plating Makeshift Light Armor Plating Scrap Shield Hardlight Generator Force Field Riot Gun Pulse Rifle Subdweller Beam Cannon Improved Assault Rifle Gauss Rifle Hypervelocity Gauss Rifle Subdweller Shrapnel Launcher Great Axe [Rating: 20] Favorites ----------- Power Ion Engine Engine Ion Engine Propulsion Aluminum Leg Treads Light Treads Leg Aluminum Leg Wheel Compact Wheel Utility Light Armor Plating Device Improved Terrain Scanner Storage Large Storage Unit Hackware Hacking Suite Protection Light Armor Plating Weapon Improved Assault Rifle Energy Gun Medium Laser Energy Cannon Subdweller Beam Cannon Ballistic Gun Improved Assault Rifle Launcher Grenade Launcher Impact Weapon Maul Slashing Weapon Great Axe Piercing Weapon Makeshift Spear Build | -11 -10 -10 -10 -7 ------- Run | Yrd Mat Min Sub Rec Slots Evolved . | . . . . . Power . | . . . . . Propulsion . | . . . . . Utility . | . . . . . Weapon . | . . . . . Parts Attached 35 | 7 12 1 7 8 Power 5 | 1 1 . 2 1 Engine 5 | 1 1 . 2 1 Core . | . . . . . Reactor . | . . . . . Propulsion 7 | 2 2 1 1 1 Treads 3 | . 1 . 1 1 Leg 2 | 2 . . . . Wheel 2 | . 1 1 . . Hover . | . . . . . Flight . | . . . . . Utility 11 | 2 4 . 3 2 Device 2 | 1 1 . . . Storage 4 | 1 2 . . 1 Processor . | . . . . . Hackware 1 | . . . . 1 Protection 4 | . 1 . 3 . Artifact . | . . . . . Weapon 12 | 2 5 . 1 4 Energy Gun 2 | 2 . . . . Energy Cannon 1 | . . . . 1 Ballistic Gun 4 | . 2 . 1 1 Ballistic Cannon . | . . . . . Launcher 1 | . 1 . . . Special Weapon . | . . . . . Impact Weapon 2 | . 2 . . . Slashing Weapon 1 | . . . . 1 Piercing Weapon 1 | . . . . 1 Special Melee Weapon . | . . . . . Unidentified Prototypes 1 | . 1 . . . Parts Lost 2 | . . . 2 . Power . | . . . . . Propulsion 1 | . . . 1 . Utility . | . . . . . Weapon 1 | . . . 1 . Highest Loss Streak 1 | . . . 1 . To Critical Strikes . | . . . . . Average Backups 12 | 4 10 14 12 17 Power . | . . . . . Propulsion 3 | 3 4 3 3 2 Utility 4 | . 2 6 4 7 Weapon 4 | . 3 4 4 6 Tool/Special . | . . . . . Unused Backups 28 | . 5 1 4 18 Power 1 | . 1 . . . Propulsion 8 | . 2 . 2 4 Utility 12 | . 1 1 1 9 Weapon 7 | . 1 . 1 5 Tool/Special . | . . . . . Average Slot Usage (%) 99 | . 99 100 98 100 Engine 14 | . 14 14 14 14 Treads 8 | . . 14 13 14 Leg 9 | . 26 . . . Wheel 9 | . . 14 14 14 Device 1 | . 4 . . . Storage 14 | . 14 14 14 14 Protection 11 | . 8 14 13 9 Energy Gun 9 | . 25 . . . Energy Cannon 1 | . . . . 7 Ballistic Gun 15 | . 1 25 25 19 Peak Build Rating 20 | 9 12 13 15 20 Average Rating 12 | 6 8 11 13 16 On Entrance 9 | . 9 12 13 15 Avg Prop Armor Cover (%) 9 | . 9 9 8 10 Naked Turns . | . . . . . Heaviest Build 59 | 15 34 34 34 59 Greatest Support 20 | 20 20 16 20 16 Greatest Overweight (x) 3 | . 2 2 2 3 Average Overweight (x) 1 | . . 2 1 2 Largest Inventory Capacity 20 | 8 15 15 15 20 Average Capacity 14 | 7 11 15 15 18 Most Carried 20 | 8 15 15 15 20 Average Carried 13 | 5 10 14 14 18 Final Capacity 20 | 8 15 15 15 20 Final Carried 20 | 8 14 15 15 20 Class Distribution -------------------- 98% | Mutant Dominant Class ---------------- Mutant | -10/Materials Mutant | -10/Mines Mutant | -10/Subcaves Mutant | -7/Recycling Resources | -11 -10 -10 -10 -7 ----------- Run | Yrd Mat Min Sub Rec Matter Collected 1258 | 270 403 277 232 76 Remotely . | . . . . . Salvage Created 1110 | 91 526 114 165 214 Parts 72 | 5 30 16 9 12 Haulers Intercepted 1 | . 1 . . . Recyclers Shooed 2 | . 1 . . 1 Parts Field Recycled . | . . . . . Retrieved Matter . | . . . . . Parts Self-Destructed 18 | . . . 18 . Prevented . | . . . . . Parts Restored . | . . . . . Kills | -11 -10 -10 -10 -7 ------- Run | Yrd Mat Min Sub Rec Combat Hostiles Destroyed 35 | . 16 11 8 . Melee 1 | . . . 1 . Guns 13 | . 8 3 2 . AOE 20 | . 8 8 4 . Classes Destroyed 12 | 2 6 1 2 1 Worker 2 | . 1 1 . . Builder 1 | . . . . 1 Tunneler 2 | 1 . 1 . . Hauler 1 | . 1 . . . Recycler 3 | 1 . . . 2 Mechanic 1 | . 1 . . . Turret 1 | . . . 1 . Watcher 3 | . 3 . . . Swarmer 14 | . 6 4 4 . Grunt 12 | . 10 2 . . Subdweller 4 | . . . 4 . Assembled 5 | . . 5 . . Best Kill Streak 7 | 2 7 5 4 2 Combat Bots Only 6 | . 6 5 4 . Max Kills in Single Turn 3 | 1 3 3 2 1 Gunslinging . | . . . . . Exploded 3 | . 3 2 2 . Melee 1 | . . . 1 . Uniques/NPCs Destroyed . | . . . . . Combat | -11 -10 -10 -10 -7 -------- Run | Yrd Mat Min Sub Rec Hostile Shots Fired 170 | . 47 27 66 30 Missed 57 | . 10 6 26 15 Hits 113 | . 37 21 40 15 Projectile 113 | . 37 21 40 15 Critical Strikes 1 | . . . 1 . Damage Taken 1447 | . 392 266 657 132 Core 253 | . 60 42 113 38 Absorbed by Shields . | . . . . . Regen/Repaired (Parts) 148 | . 148 . . . Core Remaining (%) 100 | 100 . . . . Volleys Fired 91 | 4 40 13 11 23 Largest 2 | 2 2 2 2 2 Hottest 100 | 100 100 53 46 80 Shots Fired 150 | 8 79 20 18 25 Gun 113 | 8 74 10 14 7 Cannon 18 | . . . . 18 Launcher 19 | . 5 10 4 . Special . | . . . . . Kinetic 31 | . . 10 14 7 Thermal 100 | 8 74 . . 18 Explosive 19 | . 5 10 4 . Electromagnetic . | . . . . . Robot Hit Streak 18 | 6 14 8 18 8 Robot Miss Streak 3 | . 3 1 1 1 Penetration Max . | . . . . . Secondary Targets 1 | . 1 . . . Max Gunslinging Chain 1 | . 1 . . . Shots Hit Robots 96 | 6 49 10 22 9 Core Hits 77 | 3 40 16 14 4 Critical Kills . | . . . . . Critical Parts Destroyed . | . . . . . Critical Strikes 8 | 1 6 . 1 . Burn 7 | 1 6 . . . Smash 1 | . . . 1 . Melee Attacks 16 | . 2 . 10 4 Impact 12 | . 2 . 10 . Slashing 2 | . . . . 2 Piercing 2 | . . . . 2 Sneak Attacks . | . . . . . Combat Hostiles . | . . . . . Follow-up Attacks . | . . . . . Damage Inflicted 2967 | 74 1230 647 813 203 Guns 1097 | 74 617 104 185 117 Cannons 86 | . . . . 86 Explosions 1478 | . 613 543 322 . Melee 306 | . . . 306 . Ramming . | . . . . . Kinetic 406 | . . 104 185 117 Thermal 777 | 74 617 . . 86 Explosive 1478 | . 613 543 322 . Electromagnetic . | . . . . . Impact 306 | . . . 306 . Slashing . | . . . . . Piercing . | . . . . . Highest Corruption . | . . . . . Average Corruption . | . . . . . Corruption Purged . | . . . . . Corruption Blocked . | . . . . . Overload Shots . | . . . . . Overflow Damage 50 | . 10 . 40 . Projectiles . | . . . . . Explosions 12 | . 10 . 2 . Melee 38 | . . . 38 . Knockbacks 3 | . . . 3 . Impact 3 | . . . 3 . Kinetic . | . . . . . Secondary . | . . . . . Self-Inflicted Damage 20 | . . 20 . . Shots 1 | . . 1 . . Rammed . | . . . . . Targets Rammed . | . . . . . Kicked . | . . . . . Crushed . | . . . . . Highest Temperature 381 | 78 381 36 . 144 Average Temperature 82 | 35 102 16 . 53 Received Heat Transfer 451 | . 174 91 126 60 Effects 1 | . 1 . . . Shutdowns 1 | . 1 . . . Siege Activations . | . . . . . Martial Activations . | . . . . . Shielding Activations . | . . . . . Robots Disrupted . | . . . . . Combat Hostiles . | . . . . . Robots Corrupted 1 | . . . 1 . Combat Hostiles 1 | . . . 1 . Parts Fried 1 | . . . 1 . Impact Corruptions 2 | . . . 2 . Robots Melted . | . . . . . Combat Hostiles . | . . . . . Parts Melted 5 | . 5 . . . Heat Transferred 2664 | 296 2257 . . 111 Parts Sabotaged . | . . . . . Parts Stolen . | . . . . . Parts Stripped . | . . . . . Power Chain Reactions . | . . . . . Alert | -11 -10 -10 -10 -7 ------- Run | Yrd Mat Min Sub Rec Maximum Alert Level 1 | . 1 . . . Low Security (%) 97 | 100 94 100 . 100 Level 1 2 | . 5 . . . Level 2 . | . . . . . Level 3 . | . . . . . Level 4 . | . . . . . Level 5 . | . . . . . High Security . | . . . . . Max Security . | . . . . . Peak Influence 225 | 5 225 124 . 33 Initial 40 | . . 40 . 1 Average 67 | 1 126 19 . 3 Influence Increases 1116 | 10 577 197 205 127 Destroy 0b10 Robot/C 540 | . 320 120 100 . Destroy 0b10 Robot/NC 70 | 10 30 10 . 20 Destroy Leader 88 | . 68 20 . . Trap Triggered on 0b10 10 | . . . . 10 Successful Hack 35 | . 23 . . 12 Select Force Hacks 120 | . 60 . . 60 Disable Machine 30 | . 15 . . 15 Destroy Structure 88 | . 31 47 . 10 Partial Spotted 15 | . 15 . . . Lose Combat Pursuer 120 | . 15 . 105 . Influence Decreases 1114 | 10 472 302 202 128 Entered New Map 67 | . . 65 . 2 Time Decay 987 | 10 472 197 182 126 Lost Part 20 | . . . 20 . Lost Ally 40 | . . 40 . . Squads Dispatched 5 | . 5 . . . Investigation 4 | . 4 . . . Extermination . | . . . . . Reinforcement 1 | . 1 . . . Assault . | . . . . . Garrison . | . . . . . Intercept . | . . . . . Searches Triggered . | . . . . . Construction Impeded . | . . . . . Haulers Reinforced . | . . . . . Active Scanning Responses . | . . . . . Cargo Convoy Interrupts . | . . . . . Stealth | -11 -10 -10 -10 -7 --------- Run | Yrd Mat Min Sub Rec Distress Signals . | . . . . . Communications Jammed . | . . . . . Distress Signals . | . . . . . Times Spotted 65 | . 23 26 14 2 Peak Tracking Total 20 | . 6 20 6 1 Tactical Retreats 6 | . 1 1 4 . Traps | -11 -10 -10 -10 -7 ------- Run | Yrd Mat Min Sub Rec Traps Triggered 2 | . 1 . 1 . Indirectly . | . . . . . Trap Hack Attempts . | . . . . . Triggered . | . . . . . Disarmed . | . . . . . Reprogrammed . | . . . . . Reused 1 | . . . . 1 Traps Extracted . | . . . . . Installed 1 | . . . . 1 Triggered 1 | . . . . 1 Most Traps Carried 1 | . . . 1 1 Machines | -11 -10 -10 -10 -7 ---------- Run | Yrd Mat Min Sub Rec Machines Disabled 5 | . 1 . 3 1 Max in Single Turn 2 | . 1 . 2 1 Machines Repaired . | . . . . . Machines Dismantled . | . . . . . Machines Sabotaged . | . . . . . Overloaded Fab Kills . | . . . . . Hacking | -11 -10 -10 -10 -7 --------- Run | Yrd Mat Min Sub Rec Machines Accessed 17 | . 10 . 1 6 Terminals 10 | . 7 . . 3 Fabricators . | . . . . . Repair Stations 1 | . 1 . . . Recycling Units 5 | . 2 . . 3 Scanalyzers . | . . . . . Garrison Access . | . . . . . Total Hacks 56 | . 36 . 4 16 Successful 32 | . 23 . 4 5 Failed 23 | . 12 . . 11 Catastrophic 3 | . 1 . . 2 Database Lockouts 1 | . 1 . . . Manual 32 | . 27 . . 5 Terminals 34 | . 26 . . 8 Fabricators . | . . . . . Repair Stations 6 | . 6 . . . Recycling Units 12 | . 4 . . 8 Scanalyzers . | . . . . . Garrison Access . | . . . . . Terminal Hacks 12 | . 6 . 4 2 Record 4 | . . . 4 . Part Schematic 1 | . 1 . . . Robot Schematic 1 | . 1 . . . Robot Analysis 4 | . 3 . . 1 Prototype ID Bank 1 | . . . . 1 Terminal Index 1 | . 1 . . . Fabricator Hacks . | . . . . . Repair Station Hacks 6 | . 6 . . . Scan Component 3 | . 3 . . . Repair 3 | . 3 . . . Recycling Unit Hacks 3 | . 2 . . 1 Retrieve Components 3 | . 2 . . 1 Scanalyzer . | . . . . . Garrison Access Hacks . | . . . . . Unauthorized Hacks 11 | . 9 . . 2 Terminals 7 | . 7 . . . Track 1 | . 1 . . . Assimilate 1 | . 1 . . . Botnet 4 | . 4 . . . Operators 1 | . 1 . . . Fabricators . | . . . . . Repair Stations . | . . . . . Recycling Units 4 | . 2 . . 2 Tunnel 4 | . 2 . . 2 Scanalyzers . | . . . . . Garrison Access . | . . . . . Data Cores Recovered . | . . . . . Used . | . . . . . Hacking Detections 14 | . 8 . . 6 Full Trace Events 4 | . 1 . . 3 Feedback Events . | . . . . . Feedback Blocked . | . . . . . Robot Schematics Acquired 1 | . 1 . . . Robots Built . | . . . . . Authchips . | . . . . . Time . | . . . . . Total Robot Build Rating . | . . . . . Part Schematics Acquired 1 | . 1 . . . Parts Built . | . . . . . Authchips . | . . . . . Time . | . . . . . Total Part Build Rating . | . . . . . Part Studies Acquired . | . . . . . Parts Repaired 3 | . 3 . . . Time 78 | . 78 . . . Parts Recycled . | . . . . . Recycled Matter . | . . . . . Retrieved Matter . | . . . . . Retrieved Components 22 | . 20 . . 2 Parts Scanalyzed . | . . . . . Part Schematics Acquired . | . . . . . Parts Damaged . | . . . . . Bothacking | -11 -10 -10 -10 -7 ------------ Run | Yrd Mat Min Sub Rec Used RIF Installer . | . . . . . Robots Hacked . | . . . . . Non-combat . | . . . . . Combat . | . . . . . Robot Hacks Applied . | . . . . . Relay Couplers Released . | . . . . . Fabnet Peak Effective % . | . . . . . Robots Rewired . | . . . . . Allies Hacked . | . . . . . Hacks Repelled . | . . . . . Allies | -11 -10 -10 -10 -7 -------- Run | Yrd Mat Min Sub Rec Total Allies 4 | . 1 3 . . Largest Group 4 | . 1 4 1 1 Highest-Rated Group 50 | . 10 50 10 10 Highest-Rated Ally 16 | . 10 16 10 10 Total Orders 21 | . 2 8 4 7 STAY 11 | . 1 4 2 4 FOLLOW 10 | . 1 4 2 3 Ally Attacks 21 | . . 21 . . Total Damage 253 | . . 253 . . Kills 3 | . . 3 . . Allies Corrupted . | . . . . . Allies Melted . | . . . . . Intel | -11 -10 -10 -10 -7 ------- Run | Yrd Mat Min Sub Rec Active Infowar (turns) 714 | 57 657 . . . Terrain 714 | 57 657 . . . Robot Analysis Total 4 | . 3 . . 1 Derelict Logs Recovered 3 | . . 1 2 . Drone Launches . | . . . . . Drone Recoveries . | . . . . . Exploration | -11 -10 -10 -10 -7 ------------- Run | Yrd Mat Min Sub Rec Turns Passed 5148 | 93 1898 868 1307 982 Spaces Moved 3121 | 53 1019 541 899 609 Core 1 | 1 . . . . Treads 14 | . . . 14 . Legs 998 | 52 946 . . . Wheels 2108 | . 73 541 885 609 Hover . | . . . . . Flight . | . . . . . Fastest Speed 50 | 50 120 130 115 130 Average Speed 141 | 118 157 130 131 140 Slowest Speed 240 | 120 190 130 240 145 Overloaded Moves . | . . . . . Propulsion Burnouts . | . . . . . Robots Hopped . | . . . . . Potential Cave-ins 8 | . . . . 8 Cave-ins Triggered . | . . . . . Exploration Rate (%) 61 | 4 99 93 48 64 Regions Visited 4 Branch Regions 3 Pre-discovered Areas 7 | . 2 1 2 2 Known Exits Taken . | . . . . . Unknown Exits Taken 4 | 1 1 1 1 . Scrap Searched 8 | . . 1 7 . Spaces Dug 15 | . 1 . . 14 Terrain Destroyed 142 | . 40 66 21 15 Melee 3 | . 1 . . 2 Projectile 13 | . . . . 13 AOE 126 | . 39 66 21 . Terrain Rammed . | . . . . . Walls Destroyed . | . . . . . Machines Disabled . | . . . . . Actions | -11 -10 -10 -10 -7 --------- Run | Yrd Mat Min Sub Rec Total 3679 | 71 1232 682 988 706 Wait 297 | . 112 115 28 42 Move 3117 | 52 1018 540 898 609 Hop . | . . . . . Pick Up 55 | 8 22 3 12 10 Fast Attach 11 | 7 2 . 1 1 Attach 9 | . 4 . 5 . Detach . | . . . . . Swap 42 | . 15 9 10 8 Drop 40 | . 17 2 13 8 Fire 91 | 4 40 13 11 23 Melee 16 | . 2 . 10 4 Ram . | . . . . . Kick . | . . . . . Crush . | . . . . . Escape Stasis . | . . . . . Rewire . | . . . . . Trap 1 | . . . . 1 Miscellaneous . | . . . . . Route ------- -11/Scrapyard -10/Materials (discovered 5 exits: [*Mat x3] / [*Min] / *Sub) -10/Mines (discovered 3 exits: [*Mat x2] / *Sub) -10/Subcaves (discovered 2 exits: [*Mat] / *Rec) -7/Recycling (discovered 1 exit: [*Fac]) History --------- Turn | Location | Event 33 | -11/Scrapyard | Discovered new exit (range 14) 94 | -11/Scrapyard | Entered Materials 303 | -10/Materials | Build established: Mutant 420 | -10/Materials | Discovered new exit (range 15) 517 | -10/Materials | Repaired Grenade Launcher 548 | -10/Materials | Repaired Hammer 621 | -10/Materials | Discovered new exit (range 16) 1129 | -10/Materials | Discovered new exit (range 15) 1194 | -10/Materials | Central database locked down 1359 | -10/Materials | Discovered new exit (range 15) 1419 | -10/Materials | Discovered new exit (range 9) 1613 | -10/Materials | Repaired Lgt. Armor Plating 1992 | -10/Materials | Entered Mines 1992 | -10/Mines | Accompanied by 1 ally 2020 | -10/Mines | Assisted by bots powering up and referring to "LRC-V3" 2030 | -10/Mines | Assembled infested the area 2097 | -10/Mines | Lost 3 allies 2550 | -10/Mines | Discovered new exit (range 3) 2619 | -10/Mines | Discovered new exit (range 4) 2765 | -10/Mines | Discovered new exit (range 9) 2766 | -10/Mines | Met a Derelict testing a Signal Generator 2772 | -10/Mines | Found Signal Generator 2860 | -10/Mines | Entered Subcaves 2860 | -10/Subcaves | Accompanied by 1 ally 2930 | -10/Subcaves | Discovered new exit (range 12) 2941 | -10/Subcaves | Learned 2 Materials zone layouts 2943 | -10/Subcaves | Shifting Twisted Machinery released Scrap Shield 2994 | -10/Subcaves | Shifting Twisted Machinery released Mak. Light Armor Plating 3012 | -10/Subcaves | Core integrity fell below 50% 3067 | -10/Subcaves | Learned location of Zion (-7) 3076 | -10/Subcaves | Visited Clippyterm 3080 | -10/Subcaves | Learned Factory stockpile data 3258 | -10/Subcaves | Discovered new exit (range 7) 3259 | -10/Subcaves | Met a Zionite searching for "candidates" 3400 | -10/Subcaves | Core integrity fell below 20% 4167 | -10/Subcaves | Entered Recycling 4167 | -7/Recycling | Accompanied by 1 ally 4168 | -7/Recycling | Met a Zionite searching for Scraptown 4580 | -7/Recycling | Discovered new exit (range 16) 5149 | -7/Recycling | Destroyed by Y-54 Guardian with Gatling Laser Last Messages --------------- Downloading prototype IDs... Exp. Weapon Shielding Com. Ion Cannon Enh. Nuclear Core 05085_ Y-54 Guardian springs to life. 05107_ R-06 Scavenger collects Gatling Laser. 05110_ R-06 Scavenger destroyed. 05117_ Acquired 16 matter. 05119_ R-06 Scavenger collects Sml. Storage Unit. 05122_ R-06 Scavenger collects Lgt. Ion Engine. 05123_ Dropped Sub. Power Source. 05124_ R-06 Scavenger collects Lgt. Treads. 05125_ R-06 Scavenger collects Tractor Beam. 05126_ Dropped Lgt. Treads. 05127_ R-06 Scavenger collects Sub. Power Source. 05127_ R-06 Scavenger collects Lgt. Treads. 05129_ R-06 Scavenger collects Com. Wheel. 05129_ R-06 Scavenger collects Imp. Heat Sink. 05134_ R-06 Scavenger collects Sml. Storage Unit. 05143_ Y-54 Guardian springs to life. Map ----- +----------------------------------------------------+ | ??????????????????????????????? | | ??????????????????????????????? | | ??????????????????????????????? | | ??????????????????????????????? | | ??????????????????????????????? | | ??????????????????????????????? | | ??????????????????????????????? | | ??????????????????????????????? | | ??????????????????????????????? | | ??????????????????????????????? | | ??????????????????????????????? | | ??????????????????????????????? | | ??????????????????????????????? | | ???????????? ?????????????????? | | ???????????# #????????????????? | | ???????????/ #????????????????? | | ???????????/ #?#??????????????? | | ???????????/ #?[??????????????? | | ?????????### #? ??????????????? | | ?????????+ +? ??????????????? | | ?????????# #? ??????????????? | | ?????#+### ##+#?????????????? | | ????## ##????????????? | | ????# Y#????????????? | | ?????# #?????????????? | | ?????#@ #?????????????? | | ?????# % #?????????????? | | ?????# ###########???? | | ?????# ; #???? | | ??###########;; ; !!!! #???? | | ??# ;%; #???? | | ?## " r ! #???? | | ?# " "% ! #???? | | ?## # # #???? | | ??# + + !! ! #???? | | ??# # # !!! #???? | | ??# # ###+#########?? | | ??# # ### | | ??# + | | ??# # | | ??# ### """ | | ??# #"" """ | | ??# #"" """ | | ??#############"T | | ??????????#####"" | | ??#######?#"""#"" """ | | ??# ###" "### """ | | ??# ! """ | | ??# | | ??# | +----------------------------------------------------+ Best States ------------- Heat Dissipation 35 Energy Generation 16 Energy Capacity 290 Matter Stores 300 Matter Capacity 300 Sight Range 16 Terrain Scan Range 16 Terrain Scan Density 10 Armor Coverage 150 Evasion (%) 55 Recoil Reduction 1 Offensive Hacking 10 Item Schematics ----------------- Hcp. Storage Unit | -10/Materials | Hacked Robot Schematics ------------------ O-16 Technician | -10/Materials | Hacked Fabricated ------------ Nothing Repaired ---------- Grenade Launcher | 35% | -10/Materials Hammer | 32% | -10/Materials Lgt. Armor Plating | 54% | -10/Materials Studied --------- None Alien Tech Used ----------------- None Achievements -------------- None Challenges ------------ None Game ------ Seed ShadeNetworkedNullifier Manual? 0 Play Time 00:46:16 Cumulative 677.4 hours Start 2025.11.08 @ 18:33:46 End 2025.11.08 @ 19:17:19 Sessions 1 Manual Loads 0 Difficulty Rogue Special Mode None Game No. 470 Rogue 470 Adventurer 0 Explorer 0 Win Type - Total 1 Types 1/0/0/0/0/0/0/0/0/0 Lore% 62 Gallery% 66 Achievement% 39 Wizard Run 0 Options --------- Layout 1 ASCII 0 Keyboard 0 Movement Mouse Keybinds 0 Fullscreen 1 Font 20/SmallcapsGlow Map View 54x42 Zoom Use 0% Tactical HUD 1 Map Filters NONE Filters NONE Steam 1 RUN: b60c5eda-4a32-476f-84bb-4c2d6fbc2e2d